Workbook

Sheet Prognose-invoer
B2: HLP Manufacturing INC
B3: Verkoopprognose
B4: Vertrouwelijk
B6: Naam verkoopkans | C6: Verkoop verzekeringsagent | D6: Verkoop regio | E6: Verkoop categorie | F6: Prognosebedrag | G6: Verkoop fase | H6: Kans op verkoop | I6: Prognose sluiten | J6: Gewogen prognose
B7: Adatum Corporation | C7: Rowan Murphy | D7: US - Northeast | E7: Consulting | F7: € 150,000 | G7: Formele goedkeuring | H7: 90% | I7: =DATE(YEAR(TODAY())+1,1,1) -> 2025-01-01 | J7: =Tabel_PrognoseInvoer[[#This Row],[Prognosebedrag]]*Tabel_PrognoseInvoer[[#This Row],[Kans op verkoop]] -> € 135,000
B8: Adventure Works | C8: Miho Kojima | D8: US - Southeast | E8: Producten | F8: € 145,200 | G8: Verkoopkans | H8: 10% | I8: =DATE(YEAR(TODAY())+1,2,1) -> 2025-02-01 | J8: =Tabel_PrognoseInvoer[[#This Row],[Prognosebedrag]]*Tabel_PrognoseInvoer[[#This Row],[Kans op verkoop]] -> € 14,520
B9: Alpine Ski House | C9: Cora Thomas | D9: US - North Central | E9: Training | F9: € 162,500 | G9: Geïdentificeerde behoefte | H9: 20% | I9: =DATE(YEAR(TODAY())+1,3,1) -> 2025-03-01 | J9: =Tabel_PrognoseInvoer[[#This Row],[Prognosebedrag]]*Tabel_PrognoseInvoer[[#This Row],[Kans op verkoop]] -> € 32,500
B10: Baldwin Museum of Science | C10: Ellis Turner | D10: US - South Central | E10: Mix | F10: € 147,500 | G10: Sponsor | H10: 30% | I10: =DATE(YEAR(TODAY())+1,4,1) -> 2025-04-01 | J10: =Tabel_PrognoseInvoer[[#This Row],[Prognosebedrag]]*Tabel_PrognoseInvoer[[#This Row],[Kans op verkoop]] -> € 44,250
B11: Blue Yonder Airlines | C11: Suma Kini | D11: US - Northwest | E11: Prof. Diensten | F11: € 148,000 | G11: Gevalideerd budget | H11: 40% | I11: =DATE(YEAR(TODAY())+1,5,1) -> 2025-05-01 | J11: =Tabel_PrognoseInvoer[[#This Row],[Prognosebedrag]]*Tabel_PrognoseInvoer[[#This Row],[Kans op verkoop]] -> € 59,200
B12: City Power & Light | C12: Rowan Murphy | D12: US - Southwest | E12: Ondersteuning | F12: € 175,000 | G12: Behoefte-analyse | H12: 50% | I12: =DATE(YEAR(TODAY())+1,6,1) -> 2025-06-01 | J12: =Tabel_PrognoseInvoer[[#This Row],[Prognosebedrag]]*Tabel_PrognoseInvoer[[#This Row],[Kans op verkoop]] -> € 87,500
B13: Coho Vineyard | C13: Cora Thomas | D13: Canada - Oost | E13: Mix | F13: € 149,000 | G13: Voorgestelde oplossing | H13: 60% | I13: =DATE(YEAR(TODAY())+1,7,1) -> 2025-07-01 | J13: =Tabel_PrognoseInvoer[[#This Row],[Prognosebedrag]]*Tabel_PrognoseInvoer[[#This Row],[Kans op verkoop]] -> € 89,400
B14: Coho Winery | C14: Suma Kini | D14: Canada - West | E14: Training | F14: € 142,000 | G14: Schriftelijk voorstel | H14: 70% | I14: =DATE(YEAR(TODAY())+1,8,1) -> 2025-08-01 | J14: =Tabel_PrognoseInvoer[[#This Row],[Prognosebedrag]]*Tabel_PrognoseInvoer[[#This Row],[Kans op verkoop]] -> € 99,400
B15: Contoso, Ltd. | C15: Cora Thomas | D15: EMEA - Frankrijk | E15: Mix | F15: € 172,500 | G15: Verbale goedkeuring | H15: 90% | I15: =DATE(YEAR(TODAY())+1,10,1) -> 2025-10-01 | J15: =Tabel_PrognoseInvoer[[#This Row],[Prognosebedrag]]*Tabel_PrognoseInvoer[[#This Row],[Kans op verkoop]] -> € 155,250
B16: Contoso Pharmaceuticals | C16: Ellis Turner | D16: EMEA - Duitsland | E16: Producten | F16: € 163,500 | G16: Sponsor | H16: 20% | I16: =DATE(YEAR(TODAY())+1,11,1) -> 2025-11-01 | J16: =Tabel_PrognoseInvoer[[#This Row],[Prognosebedrag]]*Tabel_PrognoseInvoer[[#This Row],[Kans op verkoop]] -> € 32,700
B17: Consolidated Messenger | C17: Suma Kini | D17: EMEA - Italië | E17: Producten | F17: € 155,500 | G17: Formele goedkeuring | H17: 100% | I17: =DATE(YEAR(TODAY())+1,12,1) -> 2025-12-01 | J17: =Tabel_PrognoseInvoer[[#This Row],[Prognosebedrag]]*Tabel_PrognoseInvoer[[#This Row],[Kans op verkoop]] -> € 155,500
B18: Fabrikam, Inc. | C18: Ellis Turner | D18: EMEA - Overig | E18: Consulting | F18: € 166,000 | G18: Verkoopkans | H18: 10% | I18: =DATE(YEAR(TODAY())+1,1,1) -> 2025-01-01 | J18: =Tabel_PrognoseInvoer[[#This Row],[Prognosebedrag]]*Tabel_PrognoseInvoer[[#This Row],[Kans op verkoop]] -> € 16,600
B19: Fourth Coffee | C19: Cora Thomas | D19: APSA - Azië | E19: Training | F19: € 180,000 | G19: Gevalideerd budget | H19: 30% | I19: =DATE(YEAR(TODAY())+1,3,1) -> 2025-03-01 | J19: =Tabel_PrognoseInvoer[[#This Row],[Prognosebedrag]]*Tabel_PrognoseInvoer[[#This Row],[Kans op verkoop]] -> € 54,000
B20: Graphic Design Institute | C20: Miho Kojima | D20: APSA - Pacific | E20: Diensten | F20: € 140,000 | G20: Voorgestelde oplossing | H20: 60% | I20: =DATE(YEAR(TODAY())+1,5,1) -> 2025-05-01 | J20: =Tabel_PrognoseInvoer[[#This Row],[Prognosebedrag]]*Tabel_PrognoseInvoer[[#This Row],[Kans op verkoop]] -> € 84,000
B21: Humongous Insurance | C21: Rowan Murphy | D21: APSA - Mexico | E21: Ondersteuning | F21: € 155,000 | G21: Sponsor | H21: 30% | I21: =DATE(YEAR(TODAY())+1,6,1) -> 2025-06-01 | J21: =Tabel_PrognoseInvoer[[#This Row],[Prognosebedrag]]*Tabel_PrognoseInvoer[[#This Row],[Kans op verkoop]] -> € 46,500
B22: Litware, Inc. | C22: Miho Kojima | D22: APSA - Australië | E22: Prof. Diensten | F22: € 173,200 | G22: Behoefte-analyse | H22: 50% | I22: =DATE(YEAR(TODAY())+1,10,1) -> 2025-10-01 | J22: =Tabel_PrognoseInvoer[[#This Row],[Prognosebedrag]]*Tabel_PrognoseInvoer[[#This Row],[Kans op verkoop]] -> € 86,600
B23: Lucerne Publishing | C23: Suma Kini | D23: APSA - Overig | E23: Services | F23: € 146,500 | G23: Voorgestelde oplossing | H23: 60% | I23: =DATE(YEAR(TODAY())+1,12,1) -> 2025-12-01 | J23: =Tabel_PrognoseInvoer[[#This Row],[Prognosebedrag]]*Tabel_PrognoseInvoer[[#This Row],[Kans op verkoop]] -> € 87,900
B24: Maria Reizen | C24: Ellis Turner | D24: US - Northeast | E24: Ondersteuning | F24: € 156,750 | G24: Schriftelijk voorstel | H24: 70% | I24: =DATE(YEAR(TODAY())+1,11,1) -> 2025-11-01 | J24: =Tabel_PrognoseInvoer[[#This Row],[Prognosebedrag]]*Tabel_PrognoseInvoer[[#This Row],[Kans op verkoop]] -> € 109,725
B25: Northwind Handelsonderneming | C25: Cora Thomas | D25: US - South Central | E25: Prof. Diensten | F25: € 162,000 | G25: Verbale goedkeuring | H25: 90% | I25: =DATE(YEAR(TODAY())+1,2,1) -> 2025-02-01 | J25: =Tabel_PrognoseInvoer[[#This Row],[Prognosebedrag]]*Tabel_PrognoseInvoer[[#This Row],[Kans op verkoop]] -> € 145,800
B26: Proseware, Inc. | C26: Ellis Turner | D26: Canada - Oost | E26: Mix | F26: € 157,000 | G26: Formele goedkeuring | H26: 100% | I26: =DATE(YEAR(TODAY())+1,3,1) -> 2025-03-01 | J26: =Tabel_PrognoseInvoer[[#This Row],[Prognosebedrag]]*Tabel_PrognoseInvoer[[#This Row],[Kans op verkoop]] -> € 157,000
B27: De Kunstacademie | C27: Miho Kojima | D27: EMEA - Frankrijk | E27: Diensten | F27: € 173,000 | G27: Gevalideerd budget | H27: 40% | I27: =DATE(YEAR(TODAY())+1,4,1) -> 2025-04-01 | J27: =Tabel_PrognoseInvoer[[#This Row],[Prognosebedrag]]*Tabel_PrognoseInvoer[[#This Row],[Kans op verkoop]] -> € 69,200
B28: Video Zuiderlaan | C28: Suma Kini | D28: EMEA - Engeland | E28: Mix | F28: € 171,000 | G28: Behoefte-analyse | H28: 50% | I28: =DATE(YEAR(TODAY())+1,8,1) -> 2025-08-01 | J28: =Tabel_PrognoseInvoer[[#This Row],[Prognosebedrag]]*Tabel_PrognoseInvoer[[#This Row],[Kans op verkoop]] -> € 85,500
B29: Tailspin Toys | C29: Rowan Murphy | D29: APSA - Australië | E29: Producten | F29: € 168,000 | G29: Voorgestelde oplossing | H29: 60% | I29: =DATE(YEAR(TODAY())+1,9,1) -> 2025-09-01 | J29: =Tabel_PrognoseInvoer[[#This Row],[Prognosebedrag]]*Tabel_PrognoseInvoer[[#This Row],[Kans op verkoop]] -> € 100,800

Sheet Verkoopprognose
B2: =Bedrijfsnaam -> HLP Manufacturing INC
B3: Voorspellingsgrafiek
B4: Vertrouwelijk
B5: Beginmaand | C5: =DATE(YEAR(TODAY())+1,1,1) -> 2025-01-01
B6: Maand | C6: Maandelijks prognose | D6: Cumulatief | P6: =B6 -> Maand | Q6: Maandelijkse prognose | R6: Cumulatief
B7: =DATE(YEAR(Beginmaand),MONTH(Beginmaand)+0,1) -> 2025-01-01 | C7: =SUMIFS(Tabel_PrognoseInvoer[Gewogen prognose],Tabel_PrognoseInvoer[Prognose sluiten],">="&Verkoopprognose!B7,Tabel_PrognoseInvoer[Prognose sluiten],"<="&DATE(YEAR(Verkoopprognose!B7),MONTH(Verkoopprognose!B7)+1,0)) -> € 151,600 | D7: =IF(ISNUMBER(D6),D6+C7,C7) -> € 151,600 | P7: =B7 -> 2025-01-01 | Q7: =C7 -> € 151,600 | R7: =D7-C7 -> 0
B8: =DATE(YEAR(Beginmaand),MONTH(Beginmaand)+1,1) -> 2025-02-01 | C8: =SUMIFS(Tabel_PrognoseInvoer[Gewogen prognose],Tabel_PrognoseInvoer[Prognose sluiten],">="&Verkoopprognose!B8,Tabel_PrognoseInvoer[Prognose sluiten],"<="&DATE(YEAR(Verkoopprognose!B8),MONTH(Verkoopprognose!B8)+1,0)) -> € 160,320 | D8: =IF(ISNUMBER(D7),D7+C8,C8) -> € 311,920 | P8: 2025-02-01 | Q8: =C8 -> € 160,320 | R8: =D8-C8 -> € 151,600
B9: =DATE(YEAR(Beginmaand),MONTH(Beginmaand)+2,1) -> 2025-03-01 | C9: =SUMIFS(Tabel_PrognoseInvoer[Gewogen prognose],Tabel_PrognoseInvoer[Prognose sluiten],">="&Verkoopprognose!B9,Tabel_PrognoseInvoer[Prognose sluiten],"<="&DATE(YEAR(Verkoopprognose!B9),MONTH(Verkoopprognose!B9)+1,0)) -> € 243,500 | D9: € 555,420 | P9: 2025-03-01 | Q9: € 243,500 | R9: € 311,920
B10: =DATE(YEAR(Beginmaand),MONTH(Beginmaand)+3,1) -> 2025-04-01 | C10: =SUMIFS(Tabel_PrognoseInvoer[Gewogen prognose],Tabel_PrognoseInvoer[Prognose sluiten],">="&Verkoopprognose!B10,Tabel_PrognoseInvoer[Prognose sluiten],"<="&DATE(YEAR(Verkoopprognose!B10),MONTH(Verkoopprognose!B10)+1,0)) -> € 113,450 | D10: =IF(ISNUMBER(D9),D9+C10,C10) -> € 668,870 | P10: =B10 -> 2025-04-01 | Q10: =C10 -> € 113,450 | R10: =D10-C10 -> € 555,420
B11: =DATE(YEAR(Beginmaand),MONTH(Beginmaand)+4,1) -> 2025-05-01 | C11: =SUMIFS(Tabel_PrognoseInvoer[Gewogen prognose],Tabel_PrognoseInvoer[Prognose sluiten],">="&Verkoopprognose!B11,Tabel_PrognoseInvoer[Prognose sluiten],"<="&DATE(YEAR(Verkoopprognose!B11),MONTH(Verkoopprognose!B11)+1,0)) -> € 143,200 | D11: € 812,070 | P11: 2025-05-01 | Q11: € 143,200 | R11: € 668,870
B12: =DATE(YEAR(Beginmaand),MONTH(Beginmaand)+5,1) -> 2025-06-01 | C12: =SUMIFS(Tabel_PrognoseInvoer[Gewogen prognose],Tabel_PrognoseInvoer[Prognose sluiten],">="&Verkoopprognose!B12,Tabel_PrognoseInvoer[Prognose sluiten],"<="&DATE(YEAR(Verkoopprognose!B12),MONTH(Verkoopprognose!B12)+1,0)) -> € 134,000 | D12: € 946,070 | P12: 2025-06-01 | Q12: € 134,000 | R12: € 812,070
B13: =DATE(YEAR(Beginmaand),MONTH(Beginmaand)+6,1) -> 2025-07-01 | C13: =SUMIFS(Tabel_PrognoseInvoer[Gewogen prognose],Tabel_PrognoseInvoer[Prognose sluiten],">="&Verkoopprognose!B13,Tabel_PrognoseInvoer[Prognose sluiten],"<="&DATE(YEAR(Verkoopprognose!B13),MONTH(Verkoopprognose!B13)+1,0)) -> € 89,400 | D13: € 1,035,470 | P13: 2025-07-01 | Q13: € 89,400 | R13: € 946,070
B14: =DATE(YEAR(Beginmaand),MONTH(Beginmaand)+7,1) -> 2025-08-01 | C14: =SUMIFS(Tabel_PrognoseInvoer[Gewogen prognose],Tabel_PrognoseInvoer[Prognose sluiten],">="&Verkoopprognose!B14,Tabel_PrognoseInvoer[Prognose sluiten],"<="&DATE(YEAR(Verkoopprognose!B14),MONTH(Verkoopprognose!B14)+1,0)) -> € 184,900 | D14: € 1,220,370 | P14: 2025-08-01 | Q14: € 184,900 | R14: € 1,035,470
B15: =DATE(YEAR(Beginmaand),MONTH(Beginmaand)+8,1) -> 2025-09-01 | C15: =SUMIFS(Tabel_PrognoseInvoer[Gewogen prognose],Tabel_PrognoseInvoer[Prognose sluiten],">="&Verkoopprognose!B15,Tabel_PrognoseInvoer[Prognose sluiten],"<="&DATE(YEAR(Verkoopprognose!B15),MONTH(Verkoopprognose!B15)+1,0)) -> € 100,800 | D15: € 1,321,170 | P15: 2025-09-01 | Q15: € 100,800 | R15: € 1,220,370
B16: =DATE(YEAR(Beginmaand),MONTH(Beginmaand)+9,1) -> 2025-10-01 | C16: =SUMIFS(Tabel_PrognoseInvoer[Gewogen prognose],Tabel_PrognoseInvoer[Prognose sluiten],">="&Verkoopprognose!B16,Tabel_PrognoseInvoer[Prognose sluiten],"<="&DATE(YEAR(Verkoopprognose!B16),MONTH(Verkoopprognose!B16)+1,0)) -> € 241,850 | D16: € 1,563,020 | P16: 2025-10-01 | Q16: € 241,850 | R16: € 1,321,170
B17: =DATE(YEAR(Beginmaand),MONTH(Beginmaand)+10,1) -> 2025-11-01 | C17: =SUMIFS(Tabel_PrognoseInvoer[Gewogen prognose],Tabel_PrognoseInvoer[Prognose sluiten],">="&Verkoopprognose!B17,Tabel_PrognoseInvoer[Prognose sluiten],"<="&DATE(YEAR(Verkoopprognose!B17),MONTH(Verkoopprognose!B17)+1,0)) -> € 142,425 | D17: € 1,705,445 | P17: 2025-11-01 | Q17: € 142,425 | R17: € 1,563,020
B18: =DATE(YEAR(Beginmaand),MONTH(Beginmaand)+11,1) -> 2025-12-01 | C18: =SUMIFS(Tabel_PrognoseInvoer[Gewogen prognose],Tabel_PrognoseInvoer[Prognose sluiten],">="&Verkoopprognose!B18,Tabel_PrognoseInvoer[Prognose sluiten],"<="&DATE(YEAR(Verkoopprognose!B18),MONTH(Verkoopprognose!B18)+1,0)) -> € 243,400 | D18: € 1,948,845 | P18: 2025-12-01 | Q18: € 243,400 | R18: € 1,705,445

Sheet Lijsten
B2: =Bedrijfsnaam -> HLP Manufacturing INC
B3: Verkooplijsten
B4: Vertrouwelijk
B6: Verkoopmedewerkers | C6: Verkoopregio's | D6: Verkoopcategorieën | E6: Verkoopfasen
B7: Rowan Murphy | C7: US - Northeast | D7: Consulting | E7: Geïdentificeerde behoefte
B8: Miho Kojima | C8: US - Southeast | D8: Mix | E8: Verkoopkans
B9: Cora Thomas | C9: US - North Central | D9: Producten | E9: Behoefte-analyse
B10: Ellis Turner | C10: US - South Central | D10: Prof. Diensten | E10: Voorgestelde oplossing
B11: Suma Kini | C11: US - Northwest | D11: Services | E11: Schriftelijk voorstel
C12: US - Southwest | D12: Ondersteuning | E12: Verbale goedkeuring
C13: Canada - Oost | D13: Training | E13: Formele goedkeuring
C14: Canada - West | E14: Gevalideerd budget
C15: EMEA - Frankrijk | E15: Sponsor
C16: EMEA - Duitsland
C17: EMEA - Italië
C18: EMEA - Overig
C19: APSA - Azië
C20: APSA - Pacific
C21: APSA - Mexico
C22: APSA - Australië
C23: APSA - Overig
C24: EMEA - Engeland
